[Event "*** Titled Tuesday Blitz"]
[Site "Chess.com"]
[Date "2020.05.19"]
[Round "8"]
[White "Herracek"]
[Black "Tacticusbd"]
[Result "1-0"]
[WhiteElo "2542"]
[BlackElo "2402"]
[TimeControl "180+1"]
[EndTime "13:35:42 PDT"]
[Termination "Herracek won on time"]

1. c4 {[%clk 0:03:00.9]} 1... e5 {[%clk 0:02:57.9]} 2. g3 {[%clk 0:03:01.2]}
2... Nf6 {[%clk 0:02:56.4]} 3. Bg2 {[%clk 0:03:01.8]} 3... d5 {[%clk 0:02:55.2]}
4. cxd5 {[%clk 0:03:02.7]} 4... Nxd5 {[%clk 0:02:52.5]} 5. Nf3 {[%clk
0:03:03.6]} 5... Nc6 {[%clk 0:02:49.7]} 6. O-O {[%clk 0:03:04]} 6... Nb6 {[%clk
0:02:47.9]} 7. b3 {[%clk 0:03:03.7]} 7... Be7 {[%clk 0:02:45.6]} 8. Bb2 {[%clk
0:03:04.2]} 8... Bf6 {[%clk 0:02:43.1]} 9. Nc3 {[%clk 0:03:03.3]} 9... O-O
{[%clk 0:02:32.3]} 10. Ne4 {[%clk 0:03:03]} 10... Bg4 {[%clk 0:02:29.6]} 11.
Nxf6+ {[%clk 0:03:02]} 11... Qxf6 {[%clk 0:02:28]} 12. Qc2 {[%clk 0:02:44.6]}
12... Rfe8 {[%clk 0:02:15.4]} 13. Rac1 {[%clk 0:02:37.7]} 13... Rac8 {[%clk
0:02:08.4]} 14. d3 {[%clk 0:02:36]} 14... Qh6 {[%clk 0:02:02.6]} 15. Rfd1 {[%clk
0:02:30.4]} 15... f6 {[%clk 0:01:24.6]} 16. a3 {[%clk 0:02:26.9]} 16... Kh8
{[%clk 0:01:08.9]} 17. b4 {[%clk 0:02:26.8]} 17... Ne7 {[%clk 0:01:00.1]} 18. a4
{[%clk 0:02:21.2]} 18... c6 {[%clk 0:00:54.2]} 19. Ba3 {[%clk 0:02:12.7]} 19...
Nf5 {[%clk 0:00:52]} 20. Bb2 {[%clk 0:01:53.4]} 20... Rcd8 {[%clk 0:00:41.8]}
21. b5 {[%clk 0:01:49.2]} 21... cxb5 {[%clk 0:00:39.3]} 22. axb5 {[%clk
0:01:49.2]} 22... Nd6 {[%clk 0:00:32.8]} 23. Qb3 {[%clk 0:01:37.8]} 23... Be6
{[%clk 0:00:22.8]} 24. Qb4 {[%clk 0:01:33.9]} 24... Nd5 {[%clk 0:00:19.7]} 25.
Qa5 {[%clk 0:01:32.8]} 25... b6 {[%clk 0:00:14.9]} 26. Qa4 {[%clk 0:01:21.2]}
26... Bd7 {[%clk 0:00:12.5]} 27. Nxe5 {[%clk 0:01:15.9]} 27... fxe5 {[%clk
0:00:06.8]} 28. Bxd5 {[%clk 0:01:15.2]} 28... Nxb5 {[%clk 0:00:05.8]} 29. Qa1
{[%clk 0:01:03.1]} 29... Qg5 {[%clk 0:00:00.9]} 30. Be4 {[%clk 0:00:58.8]} 1-0

[Event "*** Titled Tuesday Blitz"]
[Site "Chess.com"]
[Date "2020.05.19"]
[Round "8"]
[White "guillembaches"]
[Black "Escanor89"]
[Result "1-0"]
[WhiteElo "2424"]
[BlackElo "2554"]
[TimeControl "180+1"]
[EndTime "13:35:44 PDT"]
[Termination "guillembaches won by resignation"]

1. e4 {[%clk 0:03:00.9]} 1... c5 {[%clk 0:02:59.7]} 2. Nf3 {[%clk 0:03:01.1]}
2... d6 {[%clk 0:02:59.9]} 3. d4 {[%clk 0:03:00.9]} 3... cxd4 {[%clk 0:02:59.9]}
4. Qxd4 {[%clk 0:03:01.8]} 4... Nc6 {[%clk 0:02:59.1]} 5. Qe3 {[%clk 0:03:01.8]}
5... Nf6 {[%clk 0:02:58.2]} 6. h3 {[%clk 0:03:02]} 6... e6 {[%clk 0:02:57.8]} 7.
c4 {[%clk 0:03:02.1]} 7... a6 {[%clk 0:02:57.4]} 8. Nc3 {[%clk 0:03:02.4]} 8...
Be7 {[%clk 0:02:57.7]} 9. Be2 {[%clk 0:03:02.8]} 9... O-O {[%clk 0:02:57.7]} 10.
O-O {[%clk 0:03:02.9]} 10... Ne5 {[%clk 0:02:57.1]} 11. Rd1 {[%clk 0:02:59.4]}
11... Qc7 {[%clk 0:02:56.7]} 12. b3 {[%clk 0:02:55.1]} 12... b6 {[%clk
0:02:54.4]} 13. Bb2 {[%clk 0:02:49.9]} 13... Bb7 {[%clk 0:02:53.3]} 14. Rac1
{[%clk 0:02:45.8]} 14... Rac8 {[%clk 0:02:51]} 15. Nd4 {[%clk 0:02:38.3]} 15...
Ned7 {[%clk 0:02:49.3]} 16. Nf3 {[%clk 0:02:29.6]} 16... Rfe8 {[%clk 0:02:46.1]}
17. Bf1 {[%clk 0:02:29.6]} 17... Bf8 {[%clk 0:02:40.6]} 18. Rc2 {[%clk
0:02:29.5]} 18... Ne5 {[%clk 0:02:37.8]} 19. Rcd2 {[%clk 0:02:22.6]} 19... Nfd7
{[%clk 0:02:23.9]} 20. Nxe5 {[%clk 0:02:17.2]} 20... Nxe5 {[%clk 0:02:23.8]} 21.
f4 {[%clk 0:02:16.9]} 21... Nc6 {[%clk 0:02:11.5]} 22. Qg3 {[%clk 0:02:08.5]}
22... Rcd8 {[%clk 0:01:43.5]} 23. Bd3 {[%clk 0:01:58.8]} 23... Nb8 {[%clk
0:01:30.6]} 24. Bb1 {[%clk 0:01:52]} 24... b5 {[%clk 0:01:20.3]} 25. cxb5 {[%clk
0:01:41.8]} 25... axb5 {[%clk 0:01:19.9]} 26. Kh1 {[%clk 0:01:26]} 26... b4
{[%clk 0:01:16.4]} 27. Ne2 {[%clk 0:01:25.7]} 27... Nd7 {[%clk 0:01:13.5]} 28.
Nd4 {[%clk 0:01:22.3]} 28... Qb6 {[%clk 0:01:07.4]} 29. Nf3 {[%clk 0:01:16.8]}
29... Nc5 {[%clk 0:01:05.1]} 30. Re2 {[%clk 0:01:06.9]} 30... d5 {[%clk
0:01:01.6]} 31. exd5 {[%clk 0:01:00.8]} 31... Rxd5 {[%clk 0:01:00.7]} 32. Rxd5
{[%clk 0:00:58.1]} 32... Bxd5 {[%clk 0:01:00.8]} 33. Bxh7+ {[%clk 0:00:55.6]}
33... Kxh7 {[%clk 0:00:51.7]} 34. Qh4+ {[%clk 0:00:51.3]} 34... Kg6 {[%clk
0:00:38.1]} 35. Qg5+ {[%clk 0:00:45.5]} 35... Kh7 {[%clk 0:00:37.9]} 36. Qh5+
{[%clk 0:00:45.8]} 36... Kg8 {[%clk 0:00:36.5]} 37. Ng5 {[%clk 0:00:46]} 37...
Bd6 {[%clk 0:00:29.4]} 38. Qxf7+ {[%clk 0:00:44.1]} 1-0

[Event "*** Titled Tuesday Blitz"]
[Site "Chess.com"]
[Date "2020.05.19"]
[Round "8"]
[White "miruna_daria28"]
[Black "adricalderon8"]
[Result "0-1"]
[WhiteElo "2268"]
[BlackElo "2437"]
[TimeControl "180+1"]
[EndTime "13:35:49 PDT"]
[Termination "adricalderon8 won by resignation"]

1. e4 {[%clk 0:03:00.9]} 1... c5 {[%clk 0:02:59.6]} 2. Nf3 {[%clk 0:03:00.4]}
2... Nc6 {[%clk 0:02:59.6]} 3. d4 {[%clk 0:02:59.9]} 3... cxd4 {[%clk
0:03:00.5]} 4. Nxd4 {[%clk 0:03:00.1]} 4... g6 {[%clk 0:03:00.8]} 5. Nc3 {[%clk
0:02:59.5]} 5... Bg7 {[%clk 0:03:01.1]} 6. Be3 {[%clk 0:02:58.7]} 6... Nf6
{[%clk 0:03:00.7]} 7. Bc4 {[%clk 0:02:55.2]} 7... O-O {[%clk 0:03:00.5]} 8. Bb3
{[%clk 0:02:54.1]} 8... Re8 {[%clk 0:03:00.4]} 9. Qd2 {[%clk 0:02:45.7]} 9...
Ng4 {[%clk 0:02:53.1]} 10. Nxc6 {[%clk 0:02:39.4]} 10... dxc6 {[%clk 0:02:51.3]}
11. Bg5 {[%clk 0:02:24]} 11... Qxd2+ {[%clk 0:02:45.3]} 12. Bxd2 {[%clk
0:02:22.3]} 12... b5 {[%clk 0:02:40.2]} 13. a3 {[%clk 0:02:17.9]} 13... a6
{[%clk 0:02:32.9]} 14. O-O {[%clk 0:02:15.8]} 14... e6 {[%clk 0:02:25.9]} 15. h3
{[%clk 0:01:49.6]} 15... Ne5 {[%clk 0:02:25.2]} 16. Be3 {[%clk 0:01:45.3]} 16...
Nd7 {[%clk 0:02:24.7]} 17. Rfd1 {[%clk 0:01:35.8]} 17... c5 {[%clk 0:02:23.9]}
18. a4 {[%clk 0:00:53.8]} 18... c4 {[%clk 0:02:19.1]} 19. Ba2 {[%clk 0:00:53]}
19... Bxc3 {[%clk 0:02:08]} 20. bxc3 {[%clk 0:00:52.6]} 20... Nf6 {[%clk
0:02:08.4]} 21. f3 {[%clk 0:00:48.5]} 21... Bb7 {[%clk 0:02:08.5]} 22. Rd6
{[%clk 0:00:33.2]} 22... Red8 {[%clk 0:01:44.8]} 23. Rb6 {[%clk 0:00:30.8]}
23... Rab8 {[%clk 0:01:35.2]} 24. axb5 {[%clk 0:00:29.8]} 24... axb5 {[%clk
0:01:35.5]} 25. Rxb5 {[%clk 0:00:29.7]} 25... Ba6 {[%clk 0:01:35.7]} 26. Rxb8
{[%clk 0:00:27.6]} 26... Rxb8 {[%clk 0:01:35.5]} 27. Rb1 {[%clk 0:00:28.2]}
27... Rxb1+ {[%clk 0:01:34.8]} 28. Bxb1 {[%clk 0:00:28.1]} 28... Kf8 {[%clk
0:01:34.9]} 29. Ba2 {[%clk 0:00:28.3]} 29... Ke8 {[%clk 0:01:35.2]} 30. Bc5
{[%clk 0:00:24.3]} 30... Kd7 {[%clk 0:01:35]} 31. Kf2 {[%clk 0:00:24.5]} 31...
Kc6 {[%clk 0:01:35.5]} 32. Bb4 {[%clk 0:00:24.4]} 32... Nd7 {[%clk 0:01:27.5]}
33. Ke3 {[%clk 0:00:24.1]} 33... e5 {[%clk 0:01:28]} 34. f4 {[%clk 0:00:19.6]}
34... f6 {[%clk 0:01:27.7]} 35. fxe5 {[%clk 0:00:19]} 35... fxe5 {[%clk
0:01:28.1]} 36. Be7 {[%clk 0:00:18.6]} 36... Kb5 {[%clk 0:01:27.9]} 37. Bb4
{[%clk 0:00:18.1]} 37... Bb7 {[%clk 0:01:28.1]} 38. Be7 {[%clk 0:00:14.6]} 38...
Bc6 {[%clk 0:01:26.8]} 39. g4 {[%clk 0:00:13.5]} 39... Nc5 {[%clk 0:01:22.5]}
40. Bxc5 {[%clk 0:00:13.2]} 40... Kxc5 {[%clk 0:01:22.9]} 41. g5 {[%clk
0:00:13.9]} 41... Bb5 {[%clk 0:01:22.5]} 42. h4 {[%clk 0:00:13.7]} 42... Kb6
{[%clk 0:01:21.6]} 43. Kd2 {[%clk 0:00:13.6]} 43... Ka5 {[%clk 0:01:20.9]} 44.
Kc1 {[%clk 0:00:13.8]} 44... Kb6 {[%clk 0:01:18.7]} 45. Kb2 {[%clk 0:00:13.3]}
45... Kc5 {[%clk 0:01:19]} 46. Ka3 {[%clk 0:00:11.8]} 46... Bc6 {[%clk
0:01:19.4]} 47. Bb1 {[%clk 0:00:10.9]} 47... Bxe4 {[%clk 0:01:19.2]} 48. Ka4
{[%clk 0:00:11.3]} 48... Bc6+ {[%clk 0:01:19.3]} 49. Ka5 {[%clk 0:00:11.6]}
49... e4 {[%clk 0:01:19.6]} 0-1

[Event "*** Titled Tuesday Blitz"]
[Site "Chess.com"]
[Date "2020.05.19"]
[Round "8"]
[White "ljuks68"]
[Black "Nellichka"]
[Result "1-0"]
[WhiteElo "2332"]
[BlackElo "1992"]
[TimeControl "180+1"]
[EndTime "13:35:56 PDT"]
[Termination "ljuks68 won on time"]

1. e4 {[%clk 0:03:00.9]} 1... e6 {[%clk 0:02:58.7]} 2. d4 {[%clk 0:03:00.1]}
2... d5 {[%clk 0:02:57.9]} 3. Nc3 {[%clk 0:03:00.3]} 3... Bb4 {[%clk 0:02:56.3]}
4. e5 {[%clk 0:03:00]} 4... c5 {[%clk 0:02:55.5]} 5. a3 {[%clk 0:03:00.2]} 5...
Bxc3+ {[%clk 0:02:54.7]} 6. bxc3 {[%clk 0:03:00.6]} 6... Ne7 {[%clk 0:02:54.5]}
7. h4 {[%clk 0:02:59.2]} 7... Qa5 {[%clk 0:02:46.6]} 8. Bd2 {[%clk 0:02:57.4]}
8... Qa4 {[%clk 0:02:44.2]} 9. Qg4 {[%clk 0:02:46.7]} 9... Qxc2 {[%clk
0:02:18.1]} 10. Qxg7 {[%clk 0:02:20.6]} 10... Rg8 {[%clk 0:02:16.7]} 11. Qf6
{[%clk 0:02:19.9]} 11... Nbc6 {[%clk 0:01:59.8]} 12. Ne2 {[%clk 0:01:56.1]}
12... Rg6 {[%clk 0:01:21.6]} 13. Qf4 {[%clk 0:01:47.1]} 13... cxd4 {[%clk
0:01:04.8]} 14. cxd4 {[%clk 0:01:35.8]} 14... Bd7 {[%clk 0:01:03.1]} 15. Rh3
{[%clk 0:01:27.6]} 15... O-O-O {[%clk 0:00:48.5]} 16. Qxf7 {[%clk 0:01:22]}
16... Nf5 {[%clk 0:00:40.2]} 17. a4 {[%clk 0:01:08.8]} 17... Kb8 {[%clk
0:00:33.9]} 18. Qxh7 {[%clk 0:01:07.6]} 18... Nfxd4 {[%clk 0:00:30.3]} 19. Nxd4
{[%clk 0:01:02.1]} 19... Nxd4 {[%clk 0:00:29.2]} 20. Bd3 {[%clk 0:01:00.5]}
20... Qc7 {[%clk 0:00:24.3]} 21. Qxg6 {[%clk 0:00:59.2]} 21... Qxe5+ {[%clk
0:00:20.6]} 22. Kf1 {[%clk 0:00:55.4]} 22... Nb3 {[%clk 0:00:16.6]} 23. Rd1
{[%clk 0:00:53.1]} 23... Bxa4 {[%clk 0:00:15.1]} 24. Bc2 {[%clk 0:00:41.3]}
24... Nxd2+ {[%clk 0:00:05.5]} 25. Rxd2 {[%clk 0:00:41.4]} 25... Bxc2 {[%clk
0:00:05.1]} 26. Rxc2 {[%clk 0:00:39.4]} 26... Qa1+ {[%clk 0:00:04.4]} 27. Ke2
{[%clk 0:00:39.3]} 27... d4 {[%clk 0:00:03.8]} 28. Qd3 {[%clk 0:00:38.4]} 1-0

[Event "*** Titled Tuesday Blitz"]
[Site "Chess.com"]
[Date "2020.05.19"]
[Round "8"]
[White "chessplayer9919"]
[Black "WildBizon"]
[Result "0-1"]
[WhiteElo "2506"]
[BlackElo "2639"]
[TimeControl "180+1"]
[EndTime "13:35:57 PDT"]
[Termination "WildBizon won on time"]

1. d4 {[%clk 0:03:00.9]} 1... Nf6 {[%clk 0:02:59.8]} 2. c4 {[%clk 0:03:00.4]}
2... g6 {[%clk 0:03:00.3]} 3. Nc3 {[%clk 0:03:00.1]} 3... d5 {[%clk 0:03:00.4]}
4. cxd5 {[%clk 0:02:59.9]} 4... Nxd5 {[%clk 0:03:01.3]} 5. e4 {[%clk 0:03:00.8]}
5... Nxc3 {[%clk 0:03:01.5]} 6. bxc3 {[%clk 0:02:58.8]} 6... Bg7 {[%clk
0:03:02.4]} 7. Be3 {[%clk 0:02:57.3]} 7... c5 {[%clk 0:03:01.4]} 8. Bc4 {[%clk
0:02:46.7]} 8... O-O {[%clk 0:02:58.1]} 9. Ne2 {[%clk 0:02:46.6]} 9... Nc6
{[%clk 0:02:57.8]} 10. O-O {[%clk 0:02:44.8]} 10... Na5 {[%clk 0:02:56.7]} 11.
Bd3 {[%clk 0:02:44.6]} 11... b6 {[%clk 0:02:57.2]} 12. d5 {[%clk 0:02:31]} 12...
c4 {[%clk 0:02:35]} 13. Bc2 {[%clk 0:02:28.6]} 13... e5 {[%clk 0:02:35.2]} 14.
f3 {[%clk 0:02:19.5]} 14... f5 {[%clk 0:02:34.1]} 15. Bf2 {[%clk 0:02:11.1]}
15... f4 {[%clk 0:02:27.7]} 16. Ba4 {[%clk 0:01:38.5]} 16... Qd6 {[%clk
0:02:25.1]} 17. Qb1 {[%clk 0:01:32.7]} 17... Rf6 {[%clk 0:02:13.3]} 18. Qb4
{[%clk 0:01:23.2]} 18... Bf8 {[%clk 0:02:13.4]} 19. Qxd6 {[%clk 0:01:08.4]}
19... Bxd6 {[%clk 0:02:14.3]} 20. Bb5 {[%clk 0:01:05.3]} 20... g5 {[%clk
0:02:12.1]} 21. Rad1 {[%clk 0:00:46.5]} 21... h5 {[%clk 0:02:09.6]} 22. h3
{[%clk 0:00:42.6]} 22... g4 {[%clk 0:02:06.5]} 23. Bh4 {[%clk 0:00:40.5]} 23...
Rf8 {[%clk 0:02:02.4]} 24. Kh2 {[%clk 0:00:40.1]} 24... Kh7 {[%clk 0:01:59.9]}
25. Nc1 {[%clk 0:00:19.9]} 25... g3+ {[%clk 0:01:59.9]} 26. Kg1 {[%clk
0:00:19.5]} 26... a6 {[%clk 0:01:58.8]} 27. Bc6 {[%clk 0:00:10]} 27... Ra7
{[%clk 0:01:59.1]} 28. Ba4 {[%clk 0:00:08.6]} 28... b5 {[%clk 0:01:58.8]} 29.
Bc2 {[%clk 0:00:09]} 29... Bd7 {[%clk 0:01:56.9]} 30. Ne2 {[%clk 0:00:07.5]}
30... Kg6 {[%clk 0:01:55.2]} 31. Nxf4+ {[%clk 0:00:02.7]} 31... Rxf4 {[%clk
0:01:54.9]} 32. Bxg3 {[%clk 0:00:03.1]} 32... Kf6 {[%clk 0:01:53.1]} 33. Bxf4
{[%clk 0:00:02.8]} 33... exf4 {[%clk 0:01:53.5]} 34. Kf2 {[%clk 0:00:02.5]}
34... h4 {[%clk 0:01:52.1]} 35. Ke2 {[%clk 0:00:02]} 35... Ke5 {[%clk
0:01:52.3]} 36. Kd2 {[%clk 0:00:02.2]} 36... Ra8 {[%clk 0:01:52.3]} 37. Kc1
{[%clk 0:00:02.5]} 37... Rg8 {[%clk 0:01:52.2]} 38. Rf2 {[%clk 0:00:03.1]} 38...
Bc5 {[%clk 0:01:52.4]} 39. Re2 {[%clk 0:00:03]} 39... Bd6 {[%clk 0:01:48.6]} 40.
Kb2 {[%clk 0:00:03.2]} 40... Nb7 {[%clk 0:01:48.7]} 41. Bb1 {[%clk 0:00:02.8]}
41... a5 {[%clk 0:01:48.8]} 42. Bc2 {[%clk 0:00:03.3]} 42... Nc5 {[%clk
0:01:46.5]} 43. Kc1 {[%clk 0:00:02.7]} 43... b4 {[%clk 0:01:46.8]} 44. Kd2
{[%clk 0:00:02.6]} 44... b3 {[%clk 0:01:45.1]} 45. axb3 {[%clk 0:00:02.5]} 45...
cxb3 {[%clk 0:01:46]} 46. Bd3 {[%clk 0:00:03]} 46... a4 {[%clk 0:01:46.5]} 47.
Ra1 {[%clk 0:00:03]} 47... b2 {[%clk 0:01:44.2]} 48. Rb1 {[%clk 0:00:03.2]}
48... a3 {[%clk 0:01:44.1]} 49. Bc4 {[%clk 0:00:03.4]} 49... Bb5 {[%clk
0:01:35.6]} 0-1

[Event "*** Titled Tuesday Blitz"]
[Site "Chess.com"]
[Date "2020.05.19"]
[Round "8"]
[White "Kavyev_Ruslan"]
[Black "chenxiaoyuer"]
[Result "1-0"]
[WhiteElo "2449"]
[BlackElo "2291"]
[TimeControl "180+1"]
[EndTime "13:35:58 PDT"]
[Termination "Kavyev_Ruslan won on time"]

1. d4 {[%clk 0:03:00.9]} 1... Nf6 {[%clk 0:02:34.2]} 2. c4 {[%clk 0:03:01.8]}
2... g6 {[%clk 0:02:33.8]} 3. Nc3 {[%clk 0:03:01.9]} 3... Bg7 {[%clk 0:02:34.3]}
4. e4 {[%clk 0:03:02]} 4... d6 {[%clk 0:02:34.6]} 5. Be2 {[%clk 0:03:02.9]} 5...
O-O {[%clk 0:02:34.8]} 6. Be3 {[%clk 0:03:03.5]} 6... e5 {[%clk 0:02:29.3]} 7.
d5 {[%clk 0:03:03.7]} 7... a5 {[%clk 0:02:29.5]} 8. g4 {[%clk 0:03:02.6]} 8...
Na6 {[%clk 0:02:27.6]} 9. h4 {[%clk 0:03:02.8]} 9... h5 {[%clk 0:02:27.3]} 10.
g5 {[%clk 0:02:58.5]} 10... Nh7 {[%clk 0:02:22.1]} 11. Qd2 {[%clk 0:02:55.7]}
11... Nc5 {[%clk 0:02:14.6]} 12. Nh3 {[%clk 0:02:52.2]} 12... Bxh3 {[%clk
0:02:03.7]} 13. Rxh3 {[%clk 0:02:53.1]} 13... f6 {[%clk 0:02:02.1]} 14. O-O-O
{[%clk 0:02:50.2]} 14... fxg5 {[%clk 0:02:00.8]} 15. hxg5 {[%clk 0:02:51.1]}
15... Qe7 {[%clk 0:01:57.2]} 16. Rdh1 {[%clk 0:02:47.6]} 16... Rf7 {[%clk
0:01:50.3]} 17. Bxh5 {[%clk 0:02:46.5]} 17... gxh5 {[%clk 0:01:43.5]} 18. g6
{[%clk 0:02:47.3]} 18... Rff8 {[%clk 0:01:35.5]} 19. gxh7+ {[%clk 0:02:47.2]}
19... Kh8 {[%clk 0:01:35.6]} 20. Rxh5 {[%clk 0:02:48.1]} 20... a4 {[%clk
0:01:34.8]} 21. Kb1 {[%clk 0:02:41.1]} 21... Rf7 {[%clk 0:01:31.8]} 22. a3
{[%clk 0:02:38.1]} 22... Nb3 {[%clk 0:01:27.5]} 23. Qe2 {[%clk 0:02:38]} 23...
Nd4 {[%clk 0:01:19.1]} 24. Qg4 {[%clk 0:02:36.7]} 24... c6 {[%clk 0:01:05.4]}
25. Rg1 {[%clk 0:02:36.3]} 25... Rc8 {[%clk 0:00:47.6]} 26. Bh6 {[%clk
0:02:34.3]} 26... Rc7 {[%clk 0:00:31.6]} 27. Bxg7+ {[%clk 0:02:33.1]} 27... Rxg7
{[%clk 0:00:31.3]} 28. Qd1 {[%clk 0:02:13.1]} 28... Qf8 {[%clk 0:00:25.3]} 29.
Rxg7 {[%clk 0:01:53]} 29... Rxg7 {[%clk 0:00:24.8]} 30. dxc6 {[%clk 0:01:51.8]}
30... bxc6 {[%clk 0:00:23.7]} 31. Qxa4 {[%clk 0:01:51.2]} 31... Re7 {[%clk
0:00:17.1]} 32. Qb4 {[%clk 0:01:46.6]} 32... Re8 {[%clk 0:00:15.9]} 33. Ka2
{[%clk 0:01:28.4]} 33... c5 {[%clk 0:00:12]} 34. Qb6 {[%clk 0:01:26.8]} 34...
Rb8 {[%clk 0:00:07.6]} 35. Qc7 {[%clk 0:01:23]} 35... Rxb2+ {[%clk 0:00:07.6]}
36. Kxb2 {[%clk 0:00:53.8]} 36... Qxf2+ {[%clk 0:00:07.1]} 37. Ka1 {[%clk
0:00:54.5]} 37... Qe1+ {[%clk 0:00:06.6]} 38. Nb1 {[%clk 0:00:54.5]} 38... Nb3+
{[%clk 0:00:02.8]} 39. Kb2 {[%clk 0:00:54.7]} 39... Qe2+ {[%clk 0:00:02.2]} 40.
Kxb3 {[%clk 0:00:54.9]} 1-0

[Event "*** Titled Tuesday Blitz"]
[Site "Chess.com"]
[Date "2020.05.19"]
[Round "8"]
[White "HouseOfDurin"]
[Black "allvim"]
[Result "0-1"]
[WhiteElo "1975"]
[BlackElo "2245"]
[TimeControl "180+1"]
[EndTime "13:35:58 PDT"]
[Termination "allvim won on time"]

1. d4 {[%clk 0:03:00.9]} 1... Nf6 {[%clk 0:02:59.6]} 2. Bg5 {[%clk 0:03:01.2]}
2... d5 {[%clk 0:02:59]} 3. Bxf6 {[%clk 0:03:01.1]} 3... exf6 {[%clk 0:02:59.9]}
4. e3 {[%clk 0:03:01.5]} 4... Bd6 {[%clk 0:02:54.8]} 5. c4 {[%clk 0:03:01.4]}
5... c6 {[%clk 0:02:54.5]} 6. cxd5 {[%clk 0:03:00.8]} 6... cxd5 {[%clk
0:02:55.4]} 7. Nc3 {[%clk 0:03:00.9]} 7... O-O {[%clk 0:02:55.8]} 8. Nxd5 {[%clk
0:02:41.7]} 8... Qa5+ {[%clk 0:02:55]} 9. Nc3 {[%clk 0:02:41.3]} 9... Bb4 {[%clk
0:02:55.6]} 10. Ne2 {[%clk 0:02:39.7]} 10... Bf5 {[%clk 0:02:49.6]} 11. a3
{[%clk 0:02:33.9]} 11... Be7 {[%clk 0:02:49.7]} 12. b4 {[%clk 0:02:26.4]} 12...
Qd8 {[%clk 0:02:26.6]} 13. g3 {[%clk 0:02:23]} 13... a5 {[%clk 0:02:24.5]} 14.
b5 {[%clk 0:02:18.6]} 14... Nd7 {[%clk 0:02:07.6]} 15. Bg2 {[%clk 0:02:18.1]}
15... Rb8 {[%clk 0:02:05.5]} 16. Nd5 {[%clk 0:01:55.7]} 16... Bd6 {[%clk
0:01:59.9]} 17. O-O {[%clk 0:01:46]} 17... Nb6 {[%clk 0:01:59.9]} 18. Nec3
{[%clk 0:01:44.8]} 18... Re8 {[%clk 0:01:56.6]} 19. Qf3 {[%clk 0:01:00]} 19...
Bg6 {[%clk 0:01:34.3]} 20. h4 {[%clk 0:00:55.2]} 20... Nxd5 {[%clk 0:01:22.5]}
21. Qxd5 {[%clk 0:00:51.1]} 21... Rc8 {[%clk 0:01:23]} 22. Rfc1 {[%clk
0:00:46.7]} 22... Qe7 {[%clk 0:01:12.9]} 23. Qxb7 {[%clk 0:00:41.3]} 23... Rc7
{[%clk 0:01:05.3]} 24. Qd5 {[%clk 0:00:17]} 24... Bxg3 {[%clk 0:00:44.8]} 25.
fxg3 {[%clk 0:00:10.2]} 25... Qxe3+ {[%clk 0:00:45.3]} 26. Kh2 {[%clk
0:00:10.1]} 26... Rxc3 {[%clk 0:00:45.4]} 27. Rxc3 {[%clk 0:00:07.6]} 27... Qxc3
{[%clk 0:00:46.3]} 28. Rf1 {[%clk 0:00:04.8]} 28... Qc2 {[%clk 0:00:33.5]} 29.
b6 {[%clk 0:00:03]} 29... Be4 {[%clk 0:00:33.7]} 0-1

[Event "*** Titled Tuesday Blitz"]
[Site "Chess.com"]
[Date "2020.05.19"]
[Round "8"]
[White "mrkvoz"]
[Black "SaySpade4VIP"]
[Result "1-0"]
[WhiteElo "2824"]
[BlackElo "2700"]
[TimeControl "180+1"]
[EndTime "13:35:59 PDT"]
[Termination "mrkvoz won on time"]

1. e4 {[%clk 0:03:00.9]} 1... c6 {[%clk 0:02:59.3]} 2. Nc3 {[%clk 0:03:01]} 2...
d5 {[%clk 0:03:00.2]} 3. d3 {[%clk 0:03:01.5]} 3... e5 {[%clk 0:02:39.3]} 4. Qh5
{[%clk 0:03:00.3]} 4... Nf6 {[%clk 0:01:55.8]} 5. Qxe5+ {[%clk 0:02:59.4]} 5...
Be7 {[%clk 0:01:52.6]} 6. exd5 {[%clk 0:02:59.6]} 6... O-O {[%clk 0:01:50.3]} 7.
Qe2 {[%clk 0:02:59.3]} 7... cxd5 {[%clk 0:01:48.3]} 8. Qd1 {[%clk 0:02:59.1]}
8... d4 {[%clk 0:01:41.2]} 9. Ne4 {[%clk 0:02:58.5]} 9... Nc6 {[%clk 0:01:25.9]}
10. Nf3 {[%clk 0:02:57.4]} 10... Bg4 {[%clk 0:01:24.9]} 11. Nxf6+ {[%clk
0:02:55.2]} 11... Bxf6 {[%clk 0:01:24.3]} 12. Be2 {[%clk 0:02:56.1]} 12... Qb6
{[%clk 0:01:17.9]} 13. O-O {[%clk 0:02:55]} 13... Rfe8 {[%clk 0:01:17.1]} 14. h3
{[%clk 0:02:54.7]} 14... Bh5 {[%clk 0:01:16.8]} 15. Nxd4 {[%clk 0:02:39]} 15...
Bg6 {[%clk 0:00:28.9]} 16. Nxc6 {[%clk 0:02:35.6]} 16... bxc6 {[%clk 0:00:28.2]}
17. c3 {[%clk 0:02:32.6]} 17... c5 {[%clk 0:00:27.7]} 18. Bh5 {[%clk 0:02:30.6]}
18... Bf5 {[%clk 0:00:27]} 19. Qf3 {[%clk 0:02:28.4]} 19... Bd7 {[%clk
0:00:16.9]} 20. Qg3 {[%clk 0:02:23.3]} 20... Rad8 {[%clk 0:00:14.6]} 21. Bf3
{[%clk 0:02:22.3]} 21... Bf5 {[%clk 0:00:13.5]} 22. Be4 {[%clk 0:02:20.4]} 22...
Bxe4 {[%clk 0:00:13.8]} 23. dxe4 {[%clk 0:02:21.3]} 23... Rxe4 {[%clk
0:00:14.3]} 24. Bg5 {[%clk 0:02:19.6]} 24... Bxg5 {[%clk 0:00:11.4]} 25. Qxg5
{[%clk 0:02:20.5]} 25... Rde8 {[%clk 0:00:12.3]} 26. b3 {[%clk 0:02:16.6]} 26...
h6 {[%clk 0:00:11.9]} 27. Qg3 {[%clk 0:02:15.3]} 27... Re2 {[%clk 0:00:11.5]}
28. Qd3 {[%clk 0:02:09.9]} 28... Qf6 {[%clk 0:00:08.9]} 29. b4 {[%clk
0:01:58.2]} 29... cxb4 {[%clk 0:00:08.6]} 30. cxb4 {[%clk 0:01:59.1]} 30... Qb2
{[%clk 0:00:09]} 31. Qd7 {[%clk 0:01:47.1]} 31... a6 {[%clk 0:00:04.2]} 32. a3
{[%clk 0:01:45.3]} 32... R8e6 {[%clk 0:00:04.1]} 33. Qd8+ {[%clk 0:01:44]} 33...
Kh7 {[%clk 0:00:04.2]} 34. Qd3+ {[%clk 0:01:43.7]} 34... g6 {[%clk 0:00:04.8]}
35. Rad1 {[%clk 0:01:35.8]} 35... h5 {[%clk 0:00:03.9]} 36. Qg3 {[%clk
0:01:21.6]} 36... Kg7 {[%clk 0:00:03.8]} 37. Rd7 {[%clk 0:01:18.3]} 37... Qf6
{[%clk 0:00:03.3]} 38. h4 {[%clk 0:01:11.6]} 38... Ra2 {[%clk 0:00:02.9]} 39.
Rd3 {[%clk 0:01:11.2]} 39... Ree2 {[%clk 0:00:02.7]} 40. Rf3 {[%clk 0:01:11.7]}
40... Qe6 {[%clk 0:00:02.7]} 41. Qf4 {[%clk 0:01:11.3]} 41... Rab2 {[%clk
0:00:01.8]} 42. g3 {[%clk 0:01:10.4]} 42... Rbd2 {[%clk 0:00:02.1]} 43. Rc1
{[%clk 0:01:10]} 43... Re1+ {[%clk 0:00:02.4]} 44. Rxe1 {[%clk 0:01:09.3]} 44...
Qxe1+ {[%clk 0:00:03.3]} 45. Kg2 {[%clk 0:01:10]} 45... Rd7 {[%clk 0:00:04.2]}
46. Qf6+ {[%clk 0:01:09.9]} 46... Kg8 {[%clk 0:00:04.5]} 47. Re3 {[%clk
0:01:09.8]} 1-0